[Event "2nd Namma Bengaluru Open-A 2025"]
[Site "Bengaluru"]
[Date "2025.04.17"]
[Round "9.1"]
[White "Pantsulaia, Levan"]
[Black "Iniyan, Pa"]
[Result "1-0"]
[Annotator "TA"]
[ECO "A05"]
[WhiteElo "2532"]
[BlackElo "2578"]
[PlyCount "111"]
[EventDate "2025.04.10"]
[EventType "swiss"]
[EventCountry "IND"]
[SourceTitle "playchess.com"]
[Source "ChessBase"]
[SourceQuality "1"]
[TimeControl "5400+30"]

{[%evp 21,111,-20,0,-8,0,0,16,16,25,6,21,4,30,0,-11,-28,0,-32,0,0,-1,-19,-10,-10,-2,-14,0,0,0,0,0,0,11,0,0,0,0,0,0,8,24,22,14,17,51,39,48,39,59,63,77,72,110,110,110,101,137,125,156,148,190,179,187,186,250,272,244,260,267,198,198,198,194,198,198,198,198,198,198,198,193,192,185,168,316,301,29990,480,29992,29993,29993,29994]} 1. Nf3 {[%emt 0:00:02]} Nf6 {[%emt 0:00:42]} 2. g3 {[%emt 0:00:21]} g6 {[%emt 0:00:07]} 3. b3 {[%emt 0:00:06][%cal Bb2b3,Bb3b4][%mdl 32]} Bg7 {[%emt 0:00:12]} 4. Bb2 {[%emt 0:00:07]} c5 {[%emt 0:00:12]} 5. Bg2 {[%emt 0:00:49]} d5 {[%emt 0:00:41]} 6. c4 {[%emt 0:00:10]} d4 {[%emt 0:00:10]} 7. b4 {[%emt 0:00:05]} O-O {[%emt 0:00:36]} 8. bxc5 {[%emt 0:00:04]} Nc6 {[%emt 0:00:21]} 9. d3 {[%emt 0:00:15]} Nd7 {[%emt 0:03:43]} 10. Nbd2 {[%emt 0:00:33]} Nxc5 {[%emt 0:00:52]} 11. O-O {[%emt 0:00:08]} Re8 {[%emt 0:10:35]} 12. Nb3 {[%emt 0:01:02] A05: Réti Opening: 1 Nf3 Nf6.} Na6 $146 {[%emt 0:05:00]} (12... Na4 13. Ba3 Nc3 14. Qc2 e5 15. Rfe1 a5 16. e3 Nb4 17. Bxb4 axb4 18. exd4 exd4 19. Rxe8+ Qxe8 20. Nfxd4 {0-1 Lorente Serrano,R (1872)-Moreno Alcaraz,J (2067) ESP-ch U18 Salobrena 2020 (9)}) 13. Rb1 {[%emt 0:06:56]} e5 {[%emt 0:03:37]} 14. Ba3 {[%emt 0:02:59] The position is equal.} f5 {[%emt 0:03:09]} 15. Ne1 {[%emt 0:05:44][%cal Bf3e1,Be1c2,Bc2e3][%mdl 32]} Qc7 {[%emt 0:13:43]} 16. Nc2 {[%emt 0:01:50]} Be6 {[%emt 0:03:25]} 17. e3 {[%emt 0:00:27]} dxe3 {[%emt 0:01:07]} 18. Nxe3 {[%emt 0:00:41][%cal Od3d4]} Qd7 {[%emt 0:00:07]} 19. Nd5 {[%emt 0:01:48]} Rac8 {[%emt 0:00:31]} 20. Nd2 {[%emt 0:07:35][%cal Bb3d2,Bd2f1,Bf1e3][%mdl 32]} Nd8 {[%emt 0:08:34]} 21. Re1 {[%emt 0:02:36]} b6 {[%emt 0:02:39]} 22. Nf1 {[%emt 0:06:04]} Bxd5 {[%emt 0:15:10]} 23. Bxd5+ {[%emt 0:00:25]} Kh8 {[%emt 0:00:02]} 24. Ne3 {[%emt 0:24:12]} Ne6 {[%emt 0:02:12]} 25. Bg2 {[%emt 0:02:12]} Rcd8 {[%emt 0:09:03]} 26. Nd5 {[%emt 0:04:52]} Nec7 {[%emt 0:00:13]} 27. Nxc7 {[%emt 0:04:32]} Nxc7 {[%emt 0:00:07]} 28. Bb2 {[%emt 0:00:40]} Na6 {[%emt 0:04:41][%cal Oa6b4]} 29. Ba1 {[%emt 0:01:09]} Nc5 {[%emt 0:08:09]} 30. Bd5 {[%emt 0:02:57]} e4 {[%emt 0:00:05]} 31. Bxg7+ {[%emt 0:01:29]} Qxg7 {[%emt 0:00:11]} 32. dxe4 {[%emt 0:00:14]} fxe4 {[%emt 0:01:32]} 33. Re3 {[%emt 0:02:22]} Re5 {[%emt 0:03:47]} 34. Qd2 {[%emt 0:07:36]} Rf5 {[%emt 0:00:34]} 35. Qe2 {[%emt 0:01:01]} Rdf8 {[%emt 0:01:21] [#] ...Rxf2 is the strong threat. White stays focused until the end.} 36. Rf1 {[%emt 0:00:13]} (36. Bxe4 Rxf2 37. Qxf2 Rxf2 38. Kxf2 Qf7+ 39. Bf3 Qxc4 $15) 36... Rf3 {[%emt 0:00:41]} 37. Rxf3 {[%emt 0:00:24]} (37. Bxe4 Rxe3 38. Qxe3 Re8 $15) 37... exf3 {[%emt 0:00:27]} 38. Bxf3 {[%emt 0:00:05]} Qf6 {[%emt 0:00:28]} 39. Bd5 {[%emt 0:01:32]} h5 {[%emt 0:00:04]} 40. h4 {[%emt 0:01:03]} Kg7 {[%emt 0:01:03]} 41. Re1 {[%emt 0:00:08][%cal Bf1e1,Be1e2,Be2e7,Be7a7,Ba7c7,Bc7c6,Bc6b6,Bb6b2,Bb2b4][%mdl 32]} Nd3 {[%emt 0:00:03]} 42. Qe7+ {[%emt 0:00:47]} (42. Qxd3 $2 Qxf2+ 43. Kh1 Qxe1+ 44. Kh2 Rf2+ 45. Bg2 Rxa2 46. Qd7+ Kh6 $19) 42... Kh6 {[%emt 0:00:04]} (42... Kh8 {was worth a try.} 43. Qxf6+ Rxf6 44. Re8+ Kg7) 43. Qe3+ $18 {[%emt 0:01:21]} Kg7 {[%emt 0:00:06][%cal Bh6g7,Bg7f6,Bf6f5][%mdl 32]} 44. Re2 {[%emt 0:00:16]} (44. Qxd3 $2 {perishes.} Qxf2+ 45. Kh1 Qxe1+ 46. Kh2 Rf2+ 47. Bg2 Rxa2 48. Qd7+ Kh6 $19) 44... Nb4 {[%emt 0:00:22]} 45. Qe7+ {[%emt 0:01:23]} Qxe7 {[%emt 0:00:04]} 46. Rxe7+ {[%emt 0:00:05] White attacks} Kf6 {[%emt 0:00:02]} 47. Rxa7 {[%emt 0:00:09]} Nxd5 {[%emt 0:00:02]} 48. cxd5 {[%emt 0:00:08][%mdl 4096] Endgame KR-KR. White is two pawns up.} Rd8 {[%emt 0:01:10]} 49. Rc7 {[%emt 0:03:23]} Rxd5 {[%emt 0:01:55]} 50. Rc6+ {[%emt 0:00:06]} Kf5 {[%emt 0:00:04]} 51. Rxb6 {[%emt 0:00:06] [#] a4 would now be deadly.} Ra5 {[%emt 0:00:16]} 52. Rb2 {[%emt 0:00:07]} Ke4 {[%emt 0:01:07]} (52... Kf6 $142 53. Kh1 Ra3) 53. Rb4+ {[%emt 0:00:23]} Kf3 $2 {[%emt 0:00:23]} (53... Ke5 $18 54. a4 Kf6) 54. a4 {[%emt 0:00:14]} (54. Kf1 $142 Rf5 55. a4 Rf7 56. a5 Rf8 57. a6 g5 58. hxg5 h4 59. Rxh4 Rf6 60. a7 Rf8 61. a8=R Rxa8 62. Rf4#) 54... Ra6 {[%emt 0:00:28]} (54... Ke2 $18 55. Rb6 Rxa4 56. Rxg6 Ra7) 55. Kf1 {[%emt 0:00:27][%csl Gg3][%cal Rb4f4]} Rf6 {[%emt 0:00:03]} 56. a5 {[%emt 0:00:12] Weighted Error Value: White=0.16 (very precise) /Black=0.44  Mistake:       	White=1     	Black=4      Inaccurate:     	White=2     	Black=6      OK:         	White=21    	Black=13     Best:        	White=6     	Black=2} 1-0

[Event "2nd Namma Bengaluru Open-A 2025"]
[Site "Bengaluru"]
[Date "2025.04.17"]
[Round "9.2"]
[White "Anuj Shrivatri"]
[Black "Petrosyan, Manuel"]
[Result "1/2-1/2"]
[Annotator "RC"]
[ECO "A29"]
[WhiteElo "2400"]
[BlackElo "2544"]
[PlyCount "60"]
[EventDate "2025.04.10"]
[EventType "swiss"]
[EventCountry "IND"]
[SourceTitle "playchess.com"]
[Source "ChessBase"]
[SourceQuality "1"]
[TimeControl "5400+30"]

1. c4 {[%emt 0:00:13]} Nf6 {[%emt 0:02:22]} 2. Nc3 {[%emt 0:00:10]} e5 {[%emt 0:00:23]} 3. Nf3 {[%emt 0:00:06]} Nc6 {[%emt 0:00:23]} 4. g3 {[%emt 0:00:16]} d5 {[%emt 0:00:37]} 5. cxd5 {[%emt 0:03:48]} Nxd5 {[%emt 0:00:07]} 6. Bg2 {[%emt 0:00:03]} Bc5 {[%emt 0:00:18]} 7. O-O {[%emt 0:00:53]} O-O {[%emt 0:00:19]} 8. d3 {[%emt 0:04:02]} Nxc3 {[%emt 0:01:38]} 9. bxc3 {[%emt 0:00:53]} h6 {[%emt 0:00:47]} 10. Bb2 {[%emt 0:16:36]} Bg4 {[%emt 0:20:49]} 11. Qc2 {[%emt 0:14:43]} Qe7 {[%emt 0:18:20]} 12. e3 {[%emt 0:09:24]} Bf5 {[%emt 0:00:05]} 13. Nd2 {[%emt 0:15:25]} Rad8 {[%emt 0:01:08]} 14. e4 {[%emt 0:03:10]} Be6 {[%emt 0:07:25]} 15. Nb3 {[%emt 0:03:46]} Ba3 {[%emt 0:01:48]} 16. Rad1 {[%emt 0:01:19]} a5 {[%emt 0:06:08]} 17. Qc1 {[%emt 0:08:11]} Bxb2 {[%emt 0:01:40]} 18. Qxb2 {[%emt 0:01:13]} b5 {[%emt 0:15:44]} 19. d4 {[%emt 0:07:14]} a4 {[%emt 0:03:47]} 20. d5 {[%emt 0:00:20]} axb3 {[%emt 0:00:13]} 21. dxe6 {[%emt 0:01:38]} Qxe6 {[%emt 0:01:51]} 22. axb3 {[%emt 0:00:17]} b4 {[%emt 0:01:41]} 23. Rd5 {[%emt 0:01:21]} Qe7 {[%emt 0:02:48]} 24. Rc1 {[%emt 0:00:42]} Rb8 {[%emt 0:01:56]} 25. cxb4 {[%emt 0:01:35]} Nd4 {[%emt 0:00:30]} 26. b5 {[%emt 0:00:19]} Rxb5 {[%emt 0:01:23]} 27. Rxb5 {[%emt 0:00:11]} Nxb5 {[%emt 0:00:02]} 28. Qc2 {[%emt 0:00:20]} Rb8 {[%emt 0:05:35]} 29. Bf1 {[%emt 0:00:37]} Qf6 {[%emt 0:02:47]} 30. Bxb5 {[%emt 0:03:17]} Rxb5 {[%emt 0:00:02]} 1/2-1/2

[Event "2nd Namma Bengaluru Open-A 2025"]
[Site "Bengaluru"]
[Date "2025.04.17"]
[Round "9.3"]
[White "Audi Ameya"]
[Black "Nithin Babu"]
[Result "1/2-1/2"]
[Annotator "RC"]
[ECO "C43"]
[WhiteElo "2404"]
[BlackElo "2242"]
[PlyCount "131"]
[EventDate "2025.04.10"]
[EventType "swiss"]
[EventCountry "IND"]
[SourceTitle "playchess.com"]
[Source "ChessBase"]
[SourceQuality "1"]
[TimeControl "5400+30"]

1. e4 {[%emt 0:00:01]} e5 {[%emt 0:07:59]} 2. Nf3 {[%emt 0:00:03]} Nf6 {[%emt 0:00:38]} 3. d4 {[%emt 0:00:11]} Nxe4 {[%emt 0:00:12]} 4. Bd3 {[%emt 0:00:06]} d5 {[%emt 0:00:08]} 5. Nxe5 {[%emt 0:00:07]} Bd6 {[%emt 0:00:10]} 6. Nd2 {[%emt 0:00:34]} Bxe5 {[%emt 0:00:50]} 7. dxe5 {[%emt 0:00:05]} Nc5 {[%emt 0:00:29]} 8. Nf3 {[%emt 0:00:06]} Bg4 {[%emt 0:01:02]} 9. Be2 {[%emt 0:00:35]} Nc6 {[%emt 0:01:15]} 10. Be3 {[%emt 0:00:05]} Na4 {[%emt 0:09:50]} 11. Bb5 {[%emt 0:01:02]} Nb6 {[%emt 0:07:04]} 12. h3 {[%emt 0:02:30]} Bxf3 {[%emt 0:04:31]} 13. Qxf3 {[%emt 0:06:18]} O-O {[%emt 0:04:03]} 14. Bxc6 {[%emt 0:02:10]} bxc6 {[%emt 0:02:10]} 15. Qg3 {[%emt 0:11:21]} Qe7 {[%emt 0:09:25]} 16. O-O {[%emt 0:00:32]} Nc4 {[%emt 0:48:44]} 17. Rae1 {[%emt 0:09:25]} Qxe5 {[%emt 0:00:00]} 18. Qxe5 {[%emt 0:00:06]} Nxe5 {[%emt 0:00:00]} 19. Bf4 {[%emt 0:00:02]} Nc4 {[%emt 0:00:00]} 20. b3 {[%emt 0:00:10]} Na3 {[%emt 0:00:00]} 21. Re2 {[%emt 0:10:35]} Rfe8 {[%emt 0:00:00]} 22. Rfe1 {[%emt 0:01:07]} Rxe2 {[%emt 0:00:00]} 23. Rxe2 {[%emt 0:00:01]} Nb5 {[%emt 0:00:00]} 24. c4 {[%emt 0:07:31]} Nd4 {[%emt 0:00:00]} 25. Rd2 {[%emt 0:00:25]} Ne6 {[%emt 0:00:00]} 26. Be3 {[%emt 0:00:05]} dxc4 {[%emt 0:00:00]} 27. bxc4 {[%emt 0:01:00]} a6 {[%emt 0:00:00]} 28. Rd3 {[%emt 0:06:30]} Kf8 {[%emt 0:00:00]} 29. g4 {[%emt 0:00:09]} g5 {[%emt 0:00:00]} 30. Kg2 {[%emt 0:01:29]} Kg7 {[%emt 0:00:00]} 31. Ra3 {[%emt 0:00:36]} Kf8 {[%emt 0:00:00]} 32. Ra5 {[%emt 0:00:06]} f6 {[%emt 0:00:00]} 33. h4 {[%emt 0:01:04]} h6 {[%emt 0:00:16]} 34. Kg3 {[%emt 0:00:03]} gxh4+ {[%emt 0:00:46]} 35. Kxh4 {[%emt 0:00:05]} Ng5 {[%emt 0:00:19]} 36. Rf5 {[%emt 0:12:44]} Ke7 {[%emt 0:01:21]} 37. Bd4 {[%emt 0:00:26]} Ne4 {[%emt 0:01:52]} 38. f3 {[%emt 0:02:46]} Rd8 {[%emt 0:00:27]} 39. Be3 {[%emt 0:01:58]} Ng5 {[%emt 0:01:23]} 40. Bc1 {[%emt 0:09:10]} Rd3 {[%emt 0:01:29]} 41. Kg3 {[%emt 0:01:17]} Ne4+ {[%emt 0:01:17]} 42. Kg2 {[%emt 0:00:32]} Nd6 {[%emt 0:00:46]} 43. Ra5 {[%emt 0:01:20]} Nxc4 {[%emt 0:00:41]} 44. Rxa6 {[%emt 0:00:02]} Ne5 {[%emt 0:00:28]} 45. Ra3 {[%emt 0:00:20]} Nxf3 {[%emt 0:01:37]} 46. Rxd3 {[%emt 0:02:13]} Ne1+ {[%emt 0:00:01]} 47. Kf1 {[%emt 0:00:31]} Nxd3 {[%emt 0:00:02]} 48. Bxh6 {[%emt 0:00:07]} c5 {[%emt 0:01:07]} 49. Ke2 {[%emt 0:00:34]} c4 {[%emt 0:01:17]} 50. Kd2 {[%emt 0:02:11]} Ne5 {[%emt 0:00:14]} 51. Bf4 {[%emt 0:00:14]} Nxg4 {[%emt 0:00:36]} 52. Bxc7 {[%emt 0:00:27]} Kd7 {[%emt 0:00:48]} 53. Bf4 {[%emt 0:00:08]} Kc6 {[%emt 0:00:24]} 54. Kc3 {[%emt 0:00:21]} Kd5 {[%emt 0:00:18]} 55. a4 {[%emt 0:01:08]} Nf2 {[%emt 0:00:46]} 56. a5 {[%emt 0:01:07]} Ne4+ {[%emt 0:00:15]} 57. Kb4 {[%emt 0:00:46]} c3 {[%emt 0:00:24]} 58. a6 {[%emt 0:02:27]} Kc6 {[%emt 0:00:19]} 59. Kc4 {[%emt 0:00:39]} Kb6 {[%emt 0:01:09]} 60. Kd3 {[%emt 0:00:05]} f5 {[%emt 0:00:08]} 61. Be5 {[%emt 0:00:19]} Kxa6 {[%emt 0:00:11]} 62. Bxc3 {[%emt 0:00:07]} Kb5 {[%emt 0:00:20]} 63. Kd4 {[%emt 0:00:35]} Kc6 {[%emt 0:00:16]} 64. Ke5 {[%emt 0:00:06]} Nd6 {[%emt 0:01:00]} 65. Bb4 {[%emt 0:00:06]} f4 {[%emt 0:00:08]} 66. Kxf4 {[%emt 0:00:05]} 1/2-1/2

[Event "2nd Namma Bengaluru Open-A 2025"]
[Site "Bengaluru"]
[Date "2025.04.17"]
[Round "9.4"]
[White "Dzhumaev, Marat"]
[Black "Chanda, Sandipan"]
[Result "0-1"]
[Annotator "RC"]
[ECO "A04"]
[WhiteElo "2352"]
[BlackElo "2485"]
[PlyCount "46"]
[EventDate "2025.04.10"]
[EventType "swiss"]
[EventCountry "IND"]
[SourceTitle "playchess.com"]
[Source "ChessBase"]
[SourceQuality "1"]
[TimeControl "5400+30"]

1. Nf3 {[%emt 0:05:17]} f5 {[%emt 0:00:13]} 2. e4 {[%emt 0:00:23]} fxe4 {[%emt 0:00:09]} 3. Ng5 {[%emt 0:00:04]} Nc6 {[%emt 0:01:14]} 4. d3 {[%emt 0:00:51]} e3 {[%emt 0:00:23]} 5. Bxe3 {[%emt 0:00:30]} e5 {[%emt 0:00:06]} 6. Nc3 {[%emt 0:11:54]} Be7 {[%emt 0:00:57]} 7. Nd5 {[%emt 0:08:10]} Nf6 {[%emt 0:00:24]} 8. Qf3 {[%emt 0:12:52]} O-O {[%emt 0:05:55]} 9. O-O-O {[%emt 0:02:22]} Kh8 {[%emt 0:03:36]} 10. h4 {[%emt 0:06:19]} e4 {[%emt 0:05:36]} 11. dxe4 {[%emt 0:09:30]} Nxd5 {[%emt 0:02:13]} 12. Qh5 {[%emt 0:08:42]} Nf6 {[%emt 0:00:12]} 13. Nf7+ {[%emt 0:00:08]} Rxf7 {[%emt 0:02:00]} 14. Qxf7 {[%emt 0:00:06]} d5 {[%emt 0:00:46]} 15. Bd4 {[%emt 0:22:27]} Nxd4 {[%emt 0:06:36]} 16. Rxd4 {[%emt 0:00:05]} Qd6 {[%emt 0:03:06]} 17. Bb5 {[%emt 0:02:59]} c6 {[%emt 0:03:10]} 18. exd5 {[%emt 0:00:10]} cxb5 {[%emt 0:00:23]} 19. Re1 {[%emt 0:00:06]} Bf8 {[%emt 0:00:23]} 20. f3 {[%emt 0:02:13]} Bd7 {[%emt 0:04:21]} 21. g4 {[%emt 0:00:08]} Bc6 {[%emt 0:07:24]} 22. dxc6 {[%emt 0:05:35]} Qxd4 {[%emt 0:00:07]} 23. Qxb7 {[%emt 0:00:26]} Rd8 {[%emt 0:00:14]} 0-1

[Event "2nd Namma Bengaluru Open-A 2025"]
[Site "Bengaluru"]
[Date "2025.04.17"]
[Round "9.5"]
[White "Harsh Suresh"]
[Black "Grigoryan, Karen H."]
[Result "1/2-1/2"]
[Annotator "TA"]
[ECO "B61"]
[WhiteElo "2389"]
[BlackElo "2556"]
[PlyCount "73"]
[EventDate "2025.04.10"]
[EventType "swiss"]
[EventCountry "IND"]
[SourceTitle "playchess.com"]
[Source "ChessBase"]
[SourceQuality "1"]
[TimeControl "5400+30"]

{[%evp 14,73,33,45,57,50,59,45,45,52,42,46,61,61,60,62,81,2,0,0,0,0,0,-32,-28,-39,-39,-35,-18,-18,-12,-15,-9,-22,-31,-23,-19,-35,-44,-41,-34,-154,0,0,0,-110,83,0,0,0,0,0,0,0,0,0,0,0,0,0,0,0]} 1. e4 {[%emt 0:00:35]} c5 {[%emt 0:00:06]} 2. Nf3 {[%emt 0:00:15]} Nc6 {[%emt 0:00:17]} 3. d4 {[%emt 0:00:19]} cxd4 {[%emt 0:00:05]} 4. Nxd4 {[%emt 0:00:09]} Nf6 {[%emt 1:32:02]} 5. Nc3 {[%emt 0:00:13]} d6 {[%emt 0:00:00]} 6. Bg5 {[%emt 0:00:42]} Bd7 {[%emt 0:00:00]} 7. Qd2 {[%emt 0:01:13]} Rc8 {[%emt 0:00:00]} 8. f3 {[%emt 0:09:50]} Nxd4 {[%emt 0:00:00] B61: Sicilian: Richter-Rauzer: 6...Bd7 7 Qd2.} 9. Qxd4 {[%emt 0:00:08]} Qa5 {[%emt 0:00:00]} 10. h4 {[%emt 0:02:59]} a6 {[%emt 0:00:00] White is slightly better.} 11. O-O-O {[%emt 0:08:33]} h6 {[%emt 0:00:00]} 12. Be3 {[%emt 0:10:50] A sharp opening} g6 {[%emt 0:00:00]} 13. Bc4 {[%emt 0:07:17]} Bg7 {[%emt 0:00:00]} 14. Bb3 {[%emt 0:01:41]} Be6 {[%emt 0:00:00]} 15. Bxe6 $146 {[%emt 0:11:29]} (15. Qa7 $16) (15. Kb1 h5 16. Qd2 Nd7 17. Bd4 Bxd4 18. Qxd4 Qe5 19. Qe3 Qc5 20. Qd2 Ne5 21. Qg5 {½-½ Kurnosov,I (2593)-Iljushin,A (2552) RUS-chT Dagomys 2008 (4)}) 15... fxe6 $11 {[%emt 0:00:00]} 16. Qd2 {[%emt 0:01:35]} Nd7 {[%emt 0:00:00]} 17. Bd4 {[%emt 0:00:40]} Ne5 {[%emt 0:00:00]} 18. Qf2 {[%emt 0:03:54]} (18. Qf4 $5) 18... O-O {[%emt 0:00:00]} 19. Bb6 {[%emt 0:05:31]} Qb4 {[%emt 0:00:00]} 20. a3 {[%emt 0:00:10]} Qc4 {[%emt 0:00:00][%cal Oe5g4] With the idea ...Ng4!.} 21. Bd4 {[%emt 0:00:41]} b5 {[%emt 0:00:00]} 22. Qg3 {[%emt 0:01:21]} Nc6 {[%emt 0:09:00]} 23. Bxg7 {[%emt 0:06:55]} (23. b3 $2 Qxd4 24. Rxd4 Nxd4 $19) 23... Kxg7 {[%emt 0:00:00]} 24. f4 $1 {[%emt 0:01:49]} h5 {[%emt 0:00:00]} 25. Qg5 {[%emt 0:02:53]} b4 {[%emt 0:00:00]} 26. axb4 {[%emt 0:00:22]} Rf6 {[%emt 0:00:00]} 27. g4 {[%emt 0:05:41]} (27. Rh3 $1 $15) 27... Nxb4 $2 {[%emt 0:02:30]} (27... Qxb4 $17 {Strongly threatening ...Rb8.} 28. gxh5 Rb8) 28. Kb1 {[%emt 0:00:36] and e5 should not be overlooked} Rc5 {[%emt 0:00:00]} 29. e5 {[%emt 0:00:47] [#]} (29. f5 $11) 29... Nc6 $2 {[%emt 0:00:00] [#]} (29... Nd5 $1 $17 {[%cal Rd5c3] and life is bright.} 30. Rd3 (30. exf6+ $2 exf6 $19) 30... Nxf4 (30... Rxf4 31. gxh5 Rg4 32. h6+ Kh7 33. Qd2 $19) 31. Rxd6 (31. exf6+ $2 exf6 $19) 31... Rf7) 30. Rxd6 {[%emt 0:07:15]} Rxf4 {[%emt 0:00:00] The position is equal.} 31. Rxc6 {[%emt 0:01:02]} Rxc6 {[%emt 0:00:00]} 32. gxh5 {[%emt 0:00:07]} Rf1+ {[%emt 0:00:00]} 33. Rxf1 {[%emt 0:00:07]} Qxf1+ {[%emt 0:00:00]} 34. Ka2 {[%emt 0:00:05] The board is on fire.} Qc4+ {[%emt 0:00:00]} 35. Kb1 {[%emt 0:00:14]} Qf1+ {[%emt 0:00:00]} 36. Ka2 {[%emt 0:00:06]} Qc4+ {[%emt 0:00:00]} 37. Kb1 {[%emt 0:01:02] Weighted Error Value: White=0.18 (very precise) /Black=0.20 (precise)   Mistake:       	White=4     	Black=2      Inaccurate:     	White=1     	---        OK:         	White=10    	Black=15     Best:        	White=6     	---        Strong:       	White=1     	---} 1/2-1/2

[Event "2nd Namma Bengaluru Open-A 2025"]
[Site "Bengaluru"]
[Date "2025.04.17"]
[Round "9.6"]
[White "Aronyak Ghosh"]
[Black "Subhayan Kundu"]
[Result "1-0"]
[Annotator "RC"]
[ECO "A07"]
[WhiteElo "2525"]
[BlackElo "2356"]
[PlyCount "57"]
[EventDate "2025.04.10"]
[EventType "swiss"]
[EventCountry "IND"]
[SourceTitle "playchess.com"]
[Source "ChessBase"]
[SourceQuality "1"]
[TimeControl "5400+30"]

1. Nf3 {[%emt 0:00:52]} d5 {[%emt 0:00:42]} 2. g3 {[%emt 0:01:57]} Nf6 {[%emt 0:01:12]} 3. Bg2 {[%emt 0:00:05]} e6 {[%emt 0:00:23]} 4. O-O {[%emt 0:00:23]} Be7 {[%emt 0:00:08]} 5. d3 {[%emt 0:01:48]} O-O {[%emt 0:00:48]} 6. Nbd2 {[%emt 0:00:10]} Nc6 {[%emt 0:00:11]} 7. e4 {[%emt 0:01:33]} dxe4 {[%emt 0:00:41]} 8. dxe4 {[%emt 0:00:17]} e5 {[%emt 0:00:05]} 9. Qe2 {[%emt 0:00:07]} Be6 {[%emt 0:16:54]} 10. c3 {[%emt 0:06:10]} Nd7 {[%emt 0:01:52]} 11. Nc4 {[%emt 0:06:15]} f6 {[%emt 0:04:32]} 12. Ne3 {[%emt 0:01:52]} Nb6 {[%emt 0:04:44]} 13. Rd1 {[%emt 0:05:28]} Qe8 {[%emt 0:03:11]} 14. Nd5 {[%emt 0:03:08]} Qf7 {[%emt 0:10:13]} 15. Nxc7 {[%emt 0:16:29]} Bc4 {[%emt 0:01:38]} 16. Qc2 {[%emt 0:02:03]} Rad8 {[%emt 0:01:18]} 17. Nd2 {[%emt 0:01:10]} Bd3 {[%emt 0:20:05]} 18. Qb3 {[%emt 0:00:47]} Nc4 {[%emt 0:09:25]} 19. Nxc4 {[%emt 0:16:46]} Bxc4 {[%emt 0:00:18]} 20. Qc2 {[%emt 0:00:31]} Rxd1+ {[%emt 0:11:12]} 21. Qxd1 {[%emt 0:00:07]} Rd8 {[%emt 0:01:19]} 22. Nd5 {[%emt 0:02:46]} f5 {[%emt 0:00:35]} 23. Nxe7+ {[%emt 0:09:33]} Qxe7 {[%emt 0:00:02]} 24. Qe1 {[%emt 0:00:17]} f4 {[%emt 0:01:17]} 25. gxf4 {[%emt 0:00:57]} Qf7 {[%emt 0:01:19]} 26. b3 {[%emt 0:04:12]} Qh5 {[%emt 0:00:23]} 27. f3 {[%emt 0:00:34]} Bf7 {[%emt 0:00:55]} 28. f5 {[%emt 0:00:30]} g6 {[%emt 0:00:11]} 29. fxg6 {[%emt 0:00:31]} 1-0

[Event "2nd Namma Bengaluru Open-A 2025"]
[Site "Bengaluru"]
[Date "2025.04.17"]
[Round "9.7"]
[White "Venkatesh, M.R."]
[Black "Stany, G.A."]
[Result "1/2-1/2"]
[Annotator "RC"]
[ECO "B31"]
[WhiteElo "2355"]
[BlackElo "2454"]
[PlyCount "67"]
[EventDate "2025.04.10"]
[EventType "swiss"]
[EventCountry "IND"]
[SourceTitle "playchess.com"]
[Source "ChessBase"]
[SourceQuality "1"]
[TimeControl "5400+30"]

1. e4 {[%emt 0:00:14]} c5 {[%emt 0:00:08]} 2. Nf3 {[%emt 0:00:17]} Nc6 {[%emt 0:00:06]} 3. Bb5 {[%emt 0:00:56]} g6 {[%emt 0:00:07]} 4. O-O {[%emt 0:00:19]} Bg7 {[%emt 0:00:08]} 5. Re1 {[%emt 0:00:12]} e5 {[%emt 0:03:31]} 6. b4 {[%emt 0:00:42]} cxb4 {[%emt 0:01:38]} 7. a3 {[%emt 0:00:52]} Nge7 {[%emt 0:00:33]} 8. axb4 {[%emt 0:01:02]} O-O {[%emt 0:02:19]} 9. Bxc6 {[%emt 0:16:40]} dxc6 {[%emt 0:06:10]} 10. Bb2 {[%emt 0:01:24]} Qc7 {[%emt 0:02:33]} 11. d3 {[%emt 0:11:46]} Rd8 {[%emt 0:11:59]} 12. Nbd2 {[%emt 0:01:01]} Be6 {[%emt 0:04:03]} 13. Ra3 {[%emt 0:05:49]} c5 {[%emt 0:05:24]} 14. b5 {[%emt 0:21:27]} f6 {[%emt 0:10:06]} 15. Qa1 {[%emt 0:02:14]} Nc8 {[%emt 0:17:19]} 16. Nf1 {[%emt 0:02:15]} Nb6 {[%emt 0:04:30]} 17. Ne3 {[%emt 0:03:33]} Bh6 {[%emt 0:03:22]} 18. h3 {[%emt 0:07:28]} Bf4 {[%emt 0:06:13]} 19. Ng4 {[%emt 0:05:21]} Bxg4 {[%emt 0:05:31]} 20. hxg4 {[%emt 0:00:02]} h6 {[%emt 0:03:18]} 21. g3 {[%emt 0:05:17]} Bg5 {[%emt 0:00:04]} 22. Kg2 {[%emt 0:02:35]} Qd7 {[%emt 0:00:21]} 23. Rh1 {[%emt 0:00:13]} Re8 {[%emt 0:01:56]} 24. Rxa7 {[%emt 0:01:59]} Qxb5 {[%emt 0:01:09]} 25. Rb1 {[%emt 0:05:34]} Rxa7 {[%emt 0:02:48]} 26. Qxa7 {[%emt 0:00:03]} Na4 {[%emt 0:00:12]} 27. Bxe5 {[%emt 0:03:57]} Qxb1 {[%emt 0:00:16]} 28. Qxa4 {[%emt 0:00:04]} Rxe5 {[%emt 0:03:58]} 29. Nxe5 {[%emt 0:00:07]} fxe5 {[%emt 0:00:03]} 30. Qe8+ {[%emt 0:00:14]} Kh7 {[%emt 0:00:13]} 31. Qf7+ {[%emt 0:00:10]} Kh8 {[%emt 0:00:04]} 32. Qf8+ {[%emt 0:00:12]} Kh7 {[%emt 0:00:04]} 33. Qf7+ {[%emt 0:00:03]} Kh8 {[%emt 0:00:03]} 34. Qf8+ {[%emt 0:03:28]} 1/2-1/2